bitfinex-derivatives/quotes_ETHF0:USTF0_20240913
["timestamp","ask_amount","ask_price","bid_price","bid_amount"]
[1726249928870,0.41434,2412.6,2412.4,3.2078]
[1726249929070,0.41433,2412.7,2412.4,3.2078]
[1726249929267,0.41433,2412.7,2412.1,0.41442]
[1726249929268,3.2078,2412.7,2411.8,3.2078]
[1726249929472,0.41439,2412.3,2411.8,3.2078]
[1726249929672,3.2078,2412.4,2411.5,3.2078]
[1726249930084,3.2078,2412.9,2411.9,3.2078]
[1726249930382,3.2078,2412.9,2412.2,3.2078]
[1726249930677,0.41434,2412.7,2412.2,3.62221]
[1726249930879,3.2078,2412.9,2412.2,3.2078]
[1726249931276,1.03586,2412.6,2411.8,3.2078]
[1726249931479,3.2078,2412.1,2411.3,0.4202]
[1726249931777,3.2078,2412.2,2411.6,3.2078]
[1726249931984,0.41446,2412.0,2411.6,3.2078]
[1726249932183,3.62222,2412.2,2411.6,3.6223]
[1726249932482,3.2078,2411.9,2411.2,3.2078]
[1726249932785,3.2078,2411.8,2411.2,3.2078]
[1726249932973,0.41451,2411.7,2411.2,3.2078]
[1726249933178,3.2078,2411.8,2411.2,3.62237]
[1726249933480,3.62229,2411.8,2411.3,0.41456]
[1726249933890,3.2078,2411.8,2411.4,0.41454]
[1726249934072,3.62229,2411.8,2411.2,3.62237]
[1726249934279,3.62229,2411.8,2411.3,0.41456]
[1726249934583,3.2078,2411.8,2411.5,0.41453]
[1726249934779,3.2078,2412.1,2411.5,3.2078]
[1726249935078,0.41444,2412.0,2411.5,3.2078]
[1726249935292,0.41444,2412.0,2411.5,3.62232]
[1726249935485,3.2078,2412.1,2411.5,3.62232]
[1726249935682,3.2078,2412.1,2411.5,3.2078]
[1726249935873,0.41448,2411.9,2411.5,3.2078]
[1726249936073,0.41448,2411.9,2410.9,4.48]
[1726249936074,3.2078,2412.4,2411.8,3.2078]
[1726249936280,0.41439,2412.3,2411.8,3.62228]
[1726249936575,3.2078,2413.2,2412.1,3.2078]
[1726249936786,3.2078,2413.2,2412.7,3.2078]
[1726249936787,0.4143,2412.9,2412.7,3.2078]
[1726249937589,0.41431,2412.8,2412.4,3.2078]
[1726249937886,0.4143,2412.9,2412.4,3.62217]
[1726249938182,0.41431,2412.8,2412.4,3.62217]
[1726249938385,3.2078,2412.9,2412.1,3.2078]
[1726249938586,1.03564,2413.1,2412.4,3.62216]
[1726249938788,3.2078,2413.2,2412.9,0.41428]
[1726249938998,3.622,2413.5,2413.1,0.41425]
[1726249939180,0.41421,2413.4,2413.0,0.41427]
[1726249939482,3.2078,2413.5,2412.7,3.2078]
[1726249939672,3.2078,2413.1,2412.7,3.2078]
[1726249939878,0.41428,2413.0,2412.7,3.2078]
[1726249940077,0.4143,2412.9,2412.5,0.41435]
[1726249940389,0.4143,2412.9,2412.0,1.0361]
[1726249940390,0.41429,2412.9,2412.6,3.2078]
[1726249940690,0.41428,2413.0,2412.6,3.62214]
[1726249940893,0.41428,2413.0,2412.6,3.00044054]
[1726249941486,0.41428,2413.0,2412.1,1.03604]
[1726249941487,3.2078,2412.9,2412.1,3.2078]
[1726249941789,4.24364,2412.7,2412.0,0.41444]
[1726249942088,1.03595,2412.4,2411.5,3.2078]
[1726249942387,1.03586,2412.7,2411.2,1.03644]
[1726249942388,4.24386,2412.2,2411.4,0.41453]
[1726249942579,4.24386,2412.2,2411.2,3.2078]
[1726249942580,3.2078,2411.7,2410.9,3.2078]
[1726249942792,0.41457,2411.3,2410.9,3.2078]
[1726249943085,0.41457,2411.3,2410.2,3.2078]
[1726249943086,0.41458,2411.2,2410.2,3.2078]
[1726249943388,3.2078,2411.3,2410.2,3.2078]
[1726249943389,3.2078,2411.3,2410.8,3.2078]
[1726249943779,3.2078,2411.8,2410.9,4.1472]
[1726249943982,1.03604,2412.2,2411.7,0.4145]
[1726249943983,3.62222,2412.2,2411.7,0.4145]
[1726249944177,0.41443,2412.1,2411.6,0.4145]
[1726249944480,3.2078,2412.2,2411.7,0.41448]
[1726249944481,3.62221,2412.2,2411.7,0.41448]
[1726249944781,1.31129,2412.4,2411.9,0.41445]
[1726249944989,0.41442,2412.2,2411.7,3.62229]
[1726249945379,1.31128,2412.4,2411.9,0.41445]
[1726249945579,0.41438,2412.4,2411.9,0.41445]
[1726249945888,3.2078,2412.6,2411.7,3.2078]
[1726249946076,4.24367,2412.6,2411.7,3.2078]
[1726249946281,1.03581,2412.8,2412.0,0.41444]
[1726249946282,3.2078,2412.3,2412.0,0.41444]
[1726249946584,3.2078,2412.3,2411.7,3.2078]
[1726249946786,3.2078,2412.3,2412.0,0.41443]
[1726249947686,3.2078,2412.3,2412.0,0.41444]
[1726249948185,3.2078,2412.3,2411.7,3.2078]
[1726249948385,0.41437,2412.5,2412.0,3.62223]
[1726249948581,0.41439,2412.4,2411.9,0.41445]
[1726249948784,3.2078,2412.6,2411.7,3.2078]
[1726249949092,0.41434,2412.6,2412.2,3.6222]
[1726249949280,0.41436,2412.5,2411.8,3.2078]
[1726249949480,0.41438,2412.4,2412.0,0.41444]
[1726249949689,3.2078,2412.9,2412.2,3.2078]
[1726249949893,3.2078,2413.6,2412.6,1.03586]
[1726249950183,3.2078,2413.6,2413.2,0.41423]
[1726249950391,0.4593,2413.7,2413.3,0.41421]
[1726249950687,0.4593,2413.7,2413.2,0.41423]
[1726249950885,0.4593,2413.7,2413.1,3.2078]
[1726249951080,3.2078,2414.0,2413.5,0.41418]
[1726249951279,3.2078,2414.0,2413.1,3.2078]
[1726249951479,3.2078,2414.0,2413.5,0.41418]
[1726249951684,3.2078,2414.0,2413.1,3.2078]
[1726249952086,5.54681697,2414.7,2413.1,3.2078]
[1726249952087,3.2078,2414.4,2413.4,3.2078]
[1726249952281,3.2078,2414.7,2413.7,3.2078]
[1726249952586,3.2078,2414.7,2414.1,0.41408]
[1726249952788,3.2078,2414.2,2414.0,0.4141]
[1726249952986,3.2078,2414.2,2413.9,0.41411]
[1726249953290,3.2078,2414.5,2413.7,3.2078]
[1726249953587,3.2078,2414.5,2413.1,1.03563]
[1726249953588,3.2078,2414.2,2413.8,0.41413]
[1726249953793,3.2078,2414.2,2413.9,0.41411]
[1726249953992,3.2078,2414.5,2414.1,0.41407]
[1726249954176,3.2078,2414.5,2413.7,3.2078]
[1726249954592,3.2078,2414.8,2414.0,4.24306]
[1726249954883,3.2078,2414.5,2414.0,0.41409]
[1726249955095,3.2078,2414.5,2413.9,0.41411]
[1726249955296,3.2078,2414.5,2413.9,0.41412]
[1726249955777,3.2078,2414.2,2414.0,0.4141]
[1726249956289,7.3502,2414.2,2413.7,3.2078]
[1726249956483,3.2078,2414.2,2413.7,3.2078]
[1726249956687,3.2078,2413.9,2413.3,3.2078]
[1726249956893,3.2078,2414.2,2413.5,0.41418]
[1726249957088,3.2078,2414.2,2413.6,0.41417]
[1726249957391,3.62192,2413.9,2413.2,0.41423]
[1726249957596,3.2078,2414.0,2413.4,0.4142]
[1726249957787,3.2078,2413.7,2413.5,0.41417]
[1726249957986,4.922,2414.2,2413.7,0.41414]
[1726249957987,3.2078,2414.0,2413.7,0.41414]
[1726249958191,3.2078,2414.0,2413.3,1.03556]
[1726249958494,0.442,2414.2,2413.3,1.03556]
[1726249958495,0.442,2414.2,2413.8,0.41413]
[1726249958992,4.5844,2414.2,2413.6,3.2078]
[1726249959193,0.442,2414.2,2413.9,0.41411]
[1726249959384,0.442,2414.2,2413.6,3.2078]
[1726249959788,0.442,2414.2,2413.7,0.41413]
[1726249960090,0.442,2414.2,2413.6,3.2078]
[1726249960091,0.442,2414.2,2413.8,0.41413]
[1726249960485,0.41409,2414.1,2413.6,0.41416]
[1726249960689,3.2078,2414.0,2413.7,0.41415]
[1726249960987,3.2078,2414.0,2413.7,0.41414]
[1726249961293,3.2078,2414.0,2413.8,0.41413]
[1726249961693,3.2078,2414.0,2413.9,0.41412]
[1726249962288,0.4602,2414.5,2413.5,3.2078]
[1726249962487,0.4602,2414.5,2414.2,0.41406]
[1726249962698,0.4602,2414.5,2413.6,4.2432]
[1726249962994,0.4602,2414.5,2414.1,0.41407]
[1726249963497,0.4602,2414.5,2414.2,0.41406]
[1726249963686,3.2078,2414.7,2413.9,4.24309]
[1726249964002,3.2078,2414.7,2413.9,3.2078]
[1726249964195,3.2078,2414.3,2413.6,1.0354]
[1726249964394,3.2078,2414.6,2413.6,4.2432]
[1726249964596,3.62181,2414.6,2414.1,0.41408]
[1726249965197,3.62181,2414.6,2414.2,0.41406]
[1726249965894,3.2078,2414.7,2414.4,0.41402]
[1726249966100,3.2078,2414.7,2414.5,0.41401]
[1726249966296,3.2078,2414.7,2414.3,0.41404]
[1726249966597,3.2078,2414.7,2414.4,0.41402]
[1726249966894,3.2078,2414.7,2414.5,0.41401]
[1726249967687,3.2078,2414.7,2414.6,0.414]
[1726249968399,1.29581,2415.1,2414.3,4.24289]
[1726249968592,2.36263697,2415.1,2414.7,0.41397]
[1726249968793,1.51351697,2415.1,2414.9,0.41393]
[1726249968997,4.5875,2415.1,2414.5,1.03503]
[1726249969197,4.27461697,2415.2,2415.0,0.41392]
[1726249969403,3.2078,2415.2,2415.0,0.41392]
[1726249969697,3.2078,2415.2,2414.8,0.41396]
[1726249969698,4.1408,2415.1,2414.8,0.41396]
[1726249969897,4.27461697,2415.2,2414.8,0.41396]
[1726249970101,3.62171,2415.2,2414.8,0.41396]
[1726249970295,3.2078,2415.2,2414.6,3.2078]
[1726249970496,0.41391,2415.1,2414.6,3.2078]
[1726249971004,0.41391,2415.1,2414.8,0.41396]
[1726249971202,3.6217,2415.2,2414.8,0.41396]
[1726249971403,3.6217,2415.2,2414.9,0.41395]
[1726249971603,3.6217,2415.2,2414.8,0.41395]
[1726249971903,3.2078,2415.2,2414.6,3.2078]
[1726249972300,3.2078,2415.2,2414.8,0.41395]
[1726249972500,0.41392,2415.1,2414.7,0.41397]
[1726249972700,0.41392,2415.1,2414.6,3.2078]
[1726249972904,0.41392,2415.1,2414.7,0.41397]
[1726249973100,0.41392,2415.1,2414.6,3.2078]
[1726249973306,0.41392,2415.1,2414.7,0.41397]
[1726249973508,0.41392,2415.1,2414.7,0.41398]
[1726249973709,0.41392,2415.1,2414.8,0.41395]
[1726249973906,3.62171,2415.2,2414.9,0.41395]
[1726249974303,0.41394,2415.0,2414.7,0.41397]
[1726249974606,3.2078,2414.9,2414.7,0.41397]
[1726249974809,0.41397,2414.8,2414.5,0.41401]
[1726249974994,0.41397,2414.8,2414.4,3.2078]
[1726249974995,4.27461697,2415.2,2414.4,3.2078]
[1726249975199,3.6217,2415.2,2414.9,0.41393]
[1726249975399,3.2078,2415.2,2414.4,4.24288]
[1726249975700,3.2078,2415.2,2414.6,1.035]
[1726249975903,3.6217,2415.2,2414.9,0.41394]
[1726249976104,3.2078,2415.2,2414.6,1.035]
[1726249976608,0.41392,2415.1,2414.4,4.24288]
[1726249976801,0.41392,2415.1,2414.8,0.41396]
[1726249976998,3.6217,2415.2,2414.9,0.41394]
[1726249977202,3.2078,2415.2,2415.0,0.41393]
[1726249977403,3.2078,2415.2,2414.9,0.41393]
[1726249977605,0.41387,2415.4,2415.0,0.41392]
[1726249978102,0.41388,2415.4,2415.0,0.41392]
[1726249978297,3.2078,2415.5,2414.9,0.41394]
[1726249978298,0.41388,2415.3,2414.9,0.41394]
[1726249978798,3.2078,2415.2,2415.0,0.41392]
[1726249979207,3.2078,2415.2,2415.1,0.41391]
[1726249979710,3.2078,2415.2,2415.0,0.41392]
[1726249979911,3.2078,2415.2,2415.1,0.41391]
[1726249980205,0.41387,2415.4,2415.0,0.41392]
[1726249980405,3.6414,2415.7,2414.7,4.24274]
[1726249980606,0.41388,2415.3,2415.0,0.41392]
[1726249980917,0.41388,2415.3,2414.9,0.41394]
[1726249981099,3.2078,2415.1,2414.4,3.2078]
[1726249981302,0.41394,2415.0,2414.7,0.41397]
[1726249981496,0.41394,2415.0,2414.4,3.2078]
[1726249981497,3.2078,2415.1,2414.6,0.41399]
[1726249981702,3.2078,2415.1,2414.4,3.2078]
[1726249981703,3.2078,2415.1,2414.9,0.41393]
[1726249982109,3.2078,2415.1,2414.5,1.035]
[1726249982110,3.2078,2415.1,2414.7,0.41397]
[1726249982308,3.2078,2415.1,2414.4,3.2078]
[1726249982520,0.41396,2414.9,2414.5,0.414]
[1726249982813,4.24261,2415.1,2414.5,0.41401]
[1726249983006,0.41397,2414.8,2414.5,0.41401]
[1726249983404,4.24261,2415.1,2414.5,0.41401]
[1726249983599,0.41396,2414.8,2414.5,0.41401]
[1726249983805,3.2078,2415.1,2414.4,3.2078]
[1726249984009,3.2078,2415.1,2414.5,1.03504]
[1726249984312,3.2078,2415.1,2415.0,0.41393]
[1726249984616,3.6414,2415.7,2414.9,1.03487]
[1726249984813,3.62155,2416.1,2415.1,4.24257]
[1726249985003,3.2078,2416.1,2415.5,0.41383]
[1726249985207,0.41377,2416.0,2415.1,4.24257]
[1726249985402,3.2078,2415.9,2415.1,4.24257]
[1726249985611,3.2078,2415.9,2415.6,0.41382]
[1726249986107,3.2078,2415.9,2415.4,3.2078]
[1726249986306,3.2078,2415.9,2415.6,0.41382]
[1726249986507,3.2078,2415.9,2415.5,0.41388]
[1726249987111,3.2078,2415.9,2415.1,4.24257]
[1726249987112,3.2078,2415.9,2415.6,0.41385]
[1726249987504,3.2078,2415.9,2415.2,8.65418867]
[1726249987708,0.41384,2415.8,2415.2,0.41393]
[1726249987909,3.62163,2415.9,2415.3,0.41392]
[1726249988108,3.2078,2415.9,2415.1,3.2078]
[1726249988304,3.62163,2415.9,2415.3,0.41391]
[1726249988512,3.2078,2415.9,2415.1,3.2078]
[1726249988714,3.2078,2415.9,2415.5,0.41388]
[1726249988918,3.2078,2415.9,2415.1,3.2078]
[1726249989310,3.62163,2415.9,2415.3,0.41392]
[1726249989511,3.2078,2415.9,2415.1,3.2078]
[1726249989920,0.41388,2415.6,2415.1,3.2078]
[1726249990218,0.41384,2415.6,2415.1,3.2078]
[1726249990615,0.41383,2415.6,2415.1,3.2078]
[1726249991011,3.2078,2415.5,2414.7,7.3178]
[1726249991514,0.41386,2415.4,2414.9,0.41395]
[1726249991716,3.2078,2415.5,2414.7,7.3178]
[1726249991906,3.2078,2415.5,2415.0,3.2078]
[1726249992124,3.2078,2415.5,2415.4,0.41386]
[1726249992305,3.2078,2415.5,2415.0,3.2078]
[1726249992306,3.2078,2415.5,2415.3,0.41386]
[1726249992716,3.2078,2415.5,2415.4,0.41386]
[1726249993410,4.118,2416.0,2415.4,10.14]
[1726249993610,4.118,2416.0,2415.3,3.2078]
[1726249993827,4.118,2416.0,2415.7,0.4138]
[1726249994120,3.2078,2416.1,2415.7,0.4138]
[1726249994319,3.2078,2416.1,2415.6,0.41382]
[1726249994519,4.27461697,2416.1,2415.6,0.41382]
[1726249994816,0.41374,2416.2,2415.8,0.41378]
[1726249994817,1.06681697,2416.2,2415.8,0.41378]
[1726249995013,4.27461697,2416.2,2415.8,0.41378]
[1726249995211,4.68833697,2416.2,2415.7,0.4138]
[1726249995512,1.06681697,2416.1,2415.6,3.2078]
[1726249995714,1.06681697,2416.3,2415.6,3.2078]
[1726249995923,3.2078,2416.1,2415.6,3.2078]
[1726249996117,4.68835697,2416.1,2415.6,3.2078]
[1726249996314,4.27461697,2416.1,2415.6,3.2078]
[1726249996510,4.68836697,2416.1,2415.6,3.2078]
[1726249996815,4.27461697,2416.1,2415.3,3.2078]
[1726249997019,1.06681697,2416.0,2415.3,3.2078]
[1726249997210,1.06681697,2416.0,2415.6,0.41382]
[1726249997413,1.06681697,2416.1,2415.3,3.2078]
[1726249997705,1.06681697,2416.2,2415.7,0.4138]
[1726249998915,1.06681697,2416.3,2415.6,3.2078]
[1726249999115,0.41373,2416.2,2415.7,0.4138]
[1726249999315,3.2078,2416.1,2415.6,3.62162]
[1726249999511,3.2078,2416.1,2415.7,0.41381]
[1726249999717,3.2078,2416.1,2415.6,3.2078]
[1726250000118,0.41376,2416.0,2415.6,3.2078]
[1726250000320,3.2078,2415.7,2415.1,0.4139]
[1726250000619,4.27461697,2415.7,2415.2,0.41388]
[1726250000927,0.41383,2415.6,2415.1,0.4139]
[1726250001116,4.68843697,2415.7,2415.1,0.4139]
[1726250001319,4.68843697,2415.7,2415.2,0.41389]
[1726250001519,0.41383,2415.6,2415.1,0.4139]
[1726250001721,0.41383,2415.6,2415.1,0.41391]
[1726250003530,3.2078,2415.4,2415.3,4.55388]
[1726250003918,3.2078,2415.4,2415.3,10.55388]
[1726250004217,4.27461697,2416.2,2415.9,0.41377]
[1726250005024,4.27461697,2416.2,2416.0,0.41376]
[1726250005330,4.27461697,2416.2,2415.9,0.41376]
[1726250005515,4.27461697,2416.2,2415.6,3.2078]
[1726250005828,0.41374,2416.1,2415.6,0.41381]
[1726250006017,3.2078,2415.9,2415.5,0.41383]
[1726250006325,0.41376,2416.1,2415.3,0.41388]
[1726250006326,0.41375,2416.1,2415.3,0.41388]
[1726250006527,1.48056697,2416.1,2415.6,0.41382]
[1726250006718,3.2078,2415.9,2415.6,0.41382]
[1726250007831,0.41375,2416.1,2415.7,0.4138]
[1726250007832,1.06681697,2416.1,2415.7,0.4138]
[1726250008027,0.4138,2415.8,2415.2,3.6494]
[1726250008225,4.68839697,2415.9,2415.4,0.41384]
[1726250008531,4.27461697,2415.9,2415.5,0.41384]
[1726250008722,3.2078,2415.9,2415.5,0.41383]
[1726250008924,4.27461697,2415.9,2415.5,0.41383]
[1726250009324,3.08081243,2416.0,2415.2,4.68413]
[1726250009530,4.27461697,2415.9,2415.5,0.41384]
[1726250009826,1.06681697,2415.9,2415.6,0.41383]
[1726250010022,1.48058697,2416.0,2415.5,0.41383]
[1726250010223,4.27461697,2415.9,2415.6,0.41381]
[1726250010423,1.06681697,2415.9,2415.6,0.41381]
[1726250010624,1.06681697,2415.9,2415.5,0.41383]
[1726250010831,1.48059697,2415.9,2415.5,0.41383]
[1726250011025,1.06681697,2415.9,2415.5,0.41383]
[1726250011224,4.68839697,2415.9,2415.5,0.41383]
[1726250011425,1.06681697,2415.8,2415.5,0.41383]
[1726250011721,3.62158,2415.9,2415.2,4.68413]
[1726250011722,4.27461697,2415.9,2415.2,4.68413]
[1726250012033,1.06681697,2415.8,2415.5,0.41384]
[1726250012221,1.06681697,2415.7,2415.3,0.41387]
[1726250012424,3.70157243,2415.7,2415.2,3.2078]
[1726250012721,0.41387,2415.4,2415.2,3.2078]
[1726250012925,1.48068697,2415.4,2415.2,3.2078]
[1726250013124,1.48068697,2415.4,2414.5,5.04135675]
[1726250013125,8.94802546,2415.3,2414.4,4.11]
[1726250013325,8.94802546,2415.3,2414.4,0.41403]
[1726250013326,3.2078,2414.7,2414.4,0.41403]
[1726250013546,1.08090715,2414.9,2414.5,0.41401]
[1726250013547,1.08090715,2414.8,2414.5,0.41401]
[1726250013725,4.28870715,2414.8,2414.5,0.41401]
[1726250013925,1.08090715,2414.8,2414.6,0.41399]
[1726250014132,1.08090715,2414.8,2414.5,0.414]
[1726250014327,1.08090715,2414.8,2414.6,0.414]
[1726250014723,1.08090715,2414.8,2414.7,0.41398]
[1726250014936,1.08090715,2414.9,2414.8,0.41396]
[1726250015231,1.08090715,2414.9,2414.6,3.2078]
[1726250015232,1.08090715,2415.1,2415.0,0.41393]
[1726250015535,1.08090715,2415.2,2415.1,0.41391]
[1726250015729,1.08121082,2415.3,2415.2,0.41389]
[1726250017031,1.08121082,2415.4,2415.2,0.41389]
[1726250017228,1.08121082,2415.3,2415.2,0.41389]
[1726250017732,1.82838349,2415.5,2415.2,0.41389]
[1726250017733,1.08121082,2415.4,2415.2,0.41389]
[1726250017933,1.08121082,2415.4,2414.9,4.24265]
[1726250018239,1.08121082,2415.4,2415.2,0.41389]
[1726250018428,1.08156264,2415.4,2415.3,0.41388]
[1726250018733,1.08156264,2415.5,2415.4,0.41386]
[1726250018926,1.62136073,2415.6,2415.5,0.41384]
[1726250019132,1.62136073,2415.7,2415.6,0.41383]
[1726250019327,1.62136073,2415.8,2415.7,0.41381]
[1726250019536,1.08141384,2415.9,2415.7,4.553]
[1726250019735,1.08141384,2415.9,2415.5,3.2078]
[1726250020234,4.28921384,2416.0,2415.5,3.2078]
[1726250020534,1.08141384,2415.8,2415.5,3.2078]
[1726250020736,1.08141384,2415.9,2415.6,0.41382]
[1726250021731,1.08141384,2415.9,2415.5,3.62164]
[1726250022034,1.08141384,2415.7,2415.5,3.2078]
[1726250022238,1.08141384,2415.7,2415.1,0.20606436]
[1726250022239,1.08141384,2415.6,2415.1,0.20606436]
[1726250022432,1.08141384,2415.6,2415.3,0.41388]
[1726250022630,1.08141384,2415.5,2414.9,7.3178]
[1726250022834,1.08141384,2415.4,2415.0,0.41391]
[1726250023041,1.08141384,2415.4,2414.9,3.62174]
[1726250023343,1.08141384,2415.4,2414.9,3.2078]
[1726250023344,1.08141384,2415.3,2414.9,3.2078]
[1726250023536,1.08141384,2415.3,2415.1,0.41391]
[1726250023732,1.08141384,2415.4,2415.1,0.41391]
[1726250023937,1.08141384,2415.3,2415.1,0.41391]
[1726250024140,1.08141384,2415.3,2415.2,0.41389]
[1726250024634,1.08141384,2415.4,2415.2,4.55389]
[1726250024839,1.08141384,2415.4,2415.2,0.41388]
[1726250025046,1.08141384,2415.4,2414.8,3.97]
[1726250025346,1.08141384,2415.2,2414.7,0.4569]
[1726250025533,1.08141384,2415.2,2414.5,5.04135675]
[1726250025534,1.08141384,2415.1,2414.5,5.04135675]
[1726250025734,1.08141384,2415.0,2414.4,3.2078]
[1726250025934,1.08141384,2415.0,2414.8,0.41396]
[1726250026134,1.08141384,2415.0,2414.7,0.41397]
[1726250026337,1.08141384,2415.0,2414.6,0.41399]
[1726250026539,1.08141384,2414.9,2414.6,0.41399]
[1726250027140,1.08141384,2414.8,2414.4,3.2078]
[1726250027443,1.08141384,2414.8,2414.7,0.41398]
[1726250027639,1.08141384,2414.9,2414.8,0.41396]
[1726250027945,1.08232942,2414.9,2414.7,0.41397]
[1726250028241,1.08232942,2414.9,2414.8,0.41396]
[1726250028431,1.08232942,2414.9,2414.4,3.2078]
[1726250028627,1.08232942,2414.9,2414.7,0.41397]
[1726250028836,1.08232942,2414.8,2414.7,0.41397]
[1726250029334,1.08232942,2414.8,2414.6,0.414]
[1726250029536,1.08260396,2414.8,2414.6,0.414]
[1726250029844,1.08260396,2414.8,2414.4,3.2078]
[1726250029845,1.08260396,2414.8,2414.7,0.41398]
[1726250030240,1.08260396,2414.8,2414.6,0.41399]
[1726250030934,1.08260396,2414.7,2414.5,0.414]
[1726250031137,1.08260396,2414.8,2414.6,0.414]
[1726250031445,1.08260396,2414.8,2414.4,3.2078]
[1726250031644,1.08260396,2414.7,2414.5,0.41401]
[1726250031949,1.08260396,2414.8,2414.7,0.41398]
[1726250032645,2.13363395,2415.1,2414.7,0.41397]
[1726250032646,1.08260396,2414.9,2414.7,0.41397]
[1726250032841,1.08260396,2414.9,2414.8,0.41396]
[1726250033034,1.08232163,2414.9,2414.8,0.41396]
[1726250033231,1.08232163,2414.9,2414.5,3.97]
[1726250033444,1.08232163,2414.8,2414.6,0.41398]
[1726250033743,1.62136073,2414.9,2414.8,0.41396]
[1726250033942,1.08219284,2414.9,2414.8,0.41396]
[1726250034533,1.08219284,2415.0,2414.9,0.41395]
[1726250035245,0.20704355,2415.2,2414.7,1.03495]
[1726250035246,1.08219284,2415.2,2414.8,1.03491]
[1726250035740,1.08193829,2415.2,2415.1,0.41391]
[1726250037643,1.08193829,2415.2,2415.1,4.55471]
[1726250038147,1.08193829,2415.2,2414.7,0.9345]
[1726250038148,5.24304073,2415.3,2414.9,0.41394]
[1726250038337,1.08194703,2415.1,2414.9,0.41394]
[1726250038848,1.08194703,2415.1,2414.7,0.9345]
[1726250039346,1.08194703,2415.1,2414.9,0.41393]
[1726250039848,1.08194703,2415.1,2415.0,0.41393]
[1726250040144,1.08194703,2415.1,2414.7,5.17725]
[1726250040359,1.08194703,2415.1,2414.8,0.41395]
[1726250040648,1.08194703,2415.2,2415.1,0.41391]
[1726250040944,1.08194703,2415.5,2415.3,0.41388]
[1726250041149,1.08194703,2415.5,2415.4,0.41386]
[1726250041339,1.08194703,2415.5,2415.0,3.97]
[1726250041547,1.08194703,2415.4,2414.9,4.24267]
[1726250041844,1.08194703,2415.4,2414.8,1.94301]
[1726250041845,2.70330776,2415.4,2414.8,1.94301]
[1726250042045,1.08194703,2415.3,2415.2,0.41389]
[1726250042240,1.62136073,2415.5,2415.2,0.41389]
[1726250042241,1.08194703,2415.4,2415.2,0.41389]
[1726250042443,1.08194703,2415.4,2415.3,0.41388]
[1726250042644,1.08194703,2415.6,2415.5,0.41384]
[1726250042850,1.08194703,2415.7,2415.6,0.41383]
[1726250043053,1.08166311,2415.7,2415.6,0.41383]
[1726250043348,1.08166311,2415.8,2415.7,0.41381]
[1726250043543,1.08166311,2415.8,2415.7,4.55301]
[1726250043937,1.08166311,2415.8,2415.6,0.41381]
[1726250044152,1.08166311,2415.8,2415.1,3.2078]
[1726250044453,1.08166311,2415.6,2415.3,0.41387]
[1726250044638,1.08166311,2415.5,2415.3,0.41387]
[1726250044842,1.08166311,2415.5,2415.4,0.41386]
[1726250045043,1.08166311,2415.5,2415.1,3.2078]
[1726250045044,1.08175834,2415.6,2415.5,0.41384]
[1726250045851,1.62136073,2415.8,2415.6,0.41383]
[1726250045852,1.08175834,2415.7,2415.6,0.41383]
[1726250046147,1.08175834,2415.7,2415.1,3.2078]
[1726250046350,1.08186137,2415.6,2415.5,0.41384]
[1726250046542,1.08186137,2415.7,2415.5,0.41384]
[1726250046739,1.62136073,2415.8,2415.5,0.41384]
[1726250046740,1.08186137,2415.6,2415.5,0.41384]
[1726250046949,1.08186137,2415.6,2415.1,3.2078]
[1726250047150,1.08186137,2415.6,2415.2,0.41389]
[1726250047151,1.08186137,2415.5,2415.2,0.41389]
[1726250047863,1.08186137,2415.5,2415.3,0.41388]
[1726250048752,1.08186137,2415.5,2415.0,7.3178]
[1726250049048,1.08186137,2415.5,2415.3,0.41392]
[1726250049250,1.08186137,2415.5,2415.2,0.41392]
[1726250049453,1.08186137,2415.4,2415.0,0.41396]
[1726250049842,1.08186137,2415.4,2415.0,9.3072685]
[1726250050042,1.08186137,2415.3,2415.0,9.3072685]
[1726250050250,1.08186137,2415.3,2414.8,1.1745616]
[1726250050451,1.08186137,2415.3,2414.9,0.41398]
[1726250050452,1.08186137,2415.2,2414.9,0.41398]
[1726250050651,1.08186137,2415.1,2414.9,0.41398]
[1726250050857,1.08186137,2415.1,2414.5,5.00514]
[1726250051148,1.08186137,2415.1,2414.7,0.41401]
[1726250051349,1.08186137,2415.0,2414.7,0.41401]
[1726250051552,1.08186137,2415.0,2414.6,8.79104297]
[1726250051553,1.08186137,2415.0,2414.8,0.414]
[1726250052154,1.08186137,2415.0,2414.7,0.41401]
[1726250052350,1.08186137,2415.0,2414.8,3.23]
[1726250052554,1.08186137,2415.0,2414.9,0.41399]
[1726250053359,1.08186137,2415.0,2414.8,3.23]
[1726250053551,1.08186137,2415.0,2414.9,0.41399]
[1726250053956,1.08186137,2415.3,2414.9,4.1408]
[1726250054159,1.08186137,2415.2,2415.1,0.41395]
[1726250054362,1.08186137,2415.2,2415.0,0.41396]
[1726250054660,1.08186137,2415.2,2415.1,0.41395]
[1726250054853,1.08186137,2415.2,2415.0,0.41396]
[1726250055448,1.08186137,2415.2,2414.7,4.24285]
[1726250055449,1.08186137,2415.2,2414.9,0.41398]
[1726250055657,1.08186137,2415.2,2414.9,0.41397]
[1726250055860,1.08186137,2415.2,2415.0,0.41396]
[1726250056462,1.08186137,2415.2,2415.1,0.41395]
[1726250057159,1.08186137,2415.2,2415.1,4.55475]
[1726250058668,1.08186137,2415.2,2415.1,0.41395]
[1726250059057,1.08186137,2415.2,2414.8,1.03501]
[1726250059058,1.08186137,2415.2,2415.0,0.41395]
[1726250059266,1.08186137,2415.2,2415.1,0.41395]
[1726250060260,1.08186137,2415.2,2414.7,0.26581536]
[1726250060261,9.17698519,2415.2,2414.7,0.26581536]
[1726250060457,4.29082892,2414.8,2414.5,0.41404]
[1726250060771,1.08302892,2414.7,2414.5,0.41404]
[1726250060975,1.08302892,2414.7,2414.3,3.2078]